bitfinex-derivatives/quotes_ETHF0:USTF0_20241230
["timestamp","ask_amount","ask_price","bid_price","bid_amount"]
[1735579623679,2.26348759,3347.8,3347.4,0.29928]
[1735579623680,2.56273759,3347.8,3347.4,0.29928]
[1735579624384,2.26348759,3347.8,3347.2,0.7563]
[1735579624574,2.26348759,3347.5,3347.2,0.457]
[1735579625079,0.29929,3347.4,3347.2,0.457]
[1735579625580,2.26348759,3347.5,3347.2,0.457]
[1735579625581,0.2993,3347.3,3347.2,0.457]
[1735579625780,2.26348759,3347.5,3346.9,3.2078]
[1735579625974,0.29932,3347.0,3346.9,3.2078]
[1735579626971,2.26348759,3347.1,3346.6,0.4218]
[1735579627174,0.29937,3346.5,3346.3,3.6359]
[1735579627375,0.29938,3346.4,3346.3,3.6359]
[1735579627776,2.56285759,3346.5,3346.3,3.6359]
[1735579627979,0.29938,3346.4,3346.3,3.6359]
[1735579628581,2.56285759,3346.5,3346.3,3.6359]
[1735579628880,0.29938,3346.4,3346.3,0.4281]
[1735579630278,2.26348759,3346.5,3345.9,0.4551]
[1735579630279,5.47128759,3346.5,3345.9,0.4551]
[1735579630479,2.26348759,3346.2,3345.9,0.4551]
[1735579630677,0.29941,3346.0,3345.9,0.4551]
[1735579630980,0.29939,3346.3,3345.9,0.4551]
[1735579631183,0.29939,3346.3,3346.1,0.2994]
[1735579631380,2.26348759,3346.8,3346.2,3.2078]
[1735579631602,0.29932,3347.1,3346.9,0.29933]
[1735579631876,0.29931,3347.2,3347.0,0.71472]
[1735579632277,5.47128759,3347.4,3347.0,0.71472]
[1735579632278,5.47128759,3347.4,3347.1,0.29931]
[1735579632483,0.2993,3347.3,3347.2,40.8]
[1735579632684,5.47128759,3347.4,3347.0,0.4154]
[1735579632881,3.2078,3347.4,3347.0,0.4154]
[1735579633184,2.26348759,3347.6,3347.0,3.6232]
[1735579633384,0.29929,3347.4,3347.2,0.2993]
[1735579633683,2.26348759,3347.6,3347.0,3.6232]
[1735579633878,2.26348759,3347.6,3347.5,0.29928]
[1735579635280,2.26348759,3347.6,3347.1,0.74829]
[1735579635281,5.47128759,3347.9,3347.8,0.29925]
[1735579635480,5.47128759,3347.9,3347.4,3.2078]
[1735579635481,2.26348759,3348.2,3347.4,3.95602]
[1735579635789,2.26348759,3348.5,3347.8,3.2078]
[1735579636085,5.77045759,3348.8,3348.0,0.29923]
[1735579636290,3.2078,3348.8,3347.9,2.26348759]
[1735579636479,3.50696,3348.8,3348.6,0.29918]
[1735579636784,3.2078,3348.8,3348.7,0.29917]
[1735579637087,0.29918,3348.7,3348.5,0.29918]
[1735579637281,0.29918,3348.7,3348.1,0.4165]
[1735579637482,5.77045759,3348.8,3348.6,0.29918]
[1735579637685,0.29918,3348.7,3348.6,0.29918]
[1735579638018,5.47128759,3348.8,3348.7,0.29917]
[1735579638229,2.26348759,3348.8,3348.7,0.29917]
[1735579638409,0.29916,3348.9,3348.7,0.29917]
[1735579638709,3.2078,3349.2,3348.6,0.29918]
[1735579638710,2.56265759,3348.8,3348.6,0.29918]
[1735579638913,0.29916,3348.9,3348.7,0.29917]
[1735579639114,0.29917,3348.7,3348.5,0.29919]
[1735579639409,0.29917,3348.7,3348.4,3.2078]
[1735579639410,0.29917,3348.7,3348.4,3.50699]
[1735579639610,2.56265759,3348.8,3348.6,0.29917]
[1735579640007,2.56265759,3348.8,3348.4,3.2078]
[1735579640208,2.26348759,3348.8,3348.7,0.29917]
[1735579640407,2.26348759,3348.8,3348.4,3.2078]
[1735579640408,0.29915,3349.0,3348.8,0.29916]
[1735579640700,2.56262759,3349.1,3348.9,0.29915]
[1735579641098,0.29915,3349.0,3348.4,3.2078]
[1735579641304,2.26348759,3349.1,3349.0,0.29914]
[1735579641502,0.29912,3349.3,3349.1,0.29913]
[1735579641714,0.29913,3349.2,3349.0,0.29914]
[1735579642409,2.26348759,3349.4,3349.0,0.29914]
[1735579642803,2.26348759,3349.4,3348.8,3.2078]
[1735579642804,2.26348759,3349.1,3348.8,3.2078]
[1735579643301,2.56262759,3349.1,3348.9,0.29915]
[1735579643607,2.26348759,3349.1,3348.8,3.2078]
[1735579643801,2.56262759,3349.1,3348.9,0.29915]
[1735579644008,2.26348759,3349.1,3348.8,3.2078]
[1735579644206,0.29915,3348.9,3348.8,3.2078]
[1735579648912,2.26348759,3349.1,3348.2,0.4588]
[1735579649114,0.29919,3348.5,3348.3,0.2992]
[1735579649308,0.2992,3348.4,3348.2,0.4588]
[1735579649512,0.29919,3348.5,3348.3,0.2992]
[1735579650014,0.29921,3348.3,3348.2,0.4588]
[1735579650217,2.56269759,3348.3,3348.2,0.4588]
[1735579651018,0.29922,3348.2,3348.1,3.96172]
[1735579651926,0.29922,3348.2,3348.1,3.6625]
[1735579652319,0.29922,3348.2,3348.1,3.96172]
[1735579652713,0.29922,3348.2,3348.1,0.4547]
[1735579652915,2.26348759,3348.3,3347.7,0.4296]
[1735579653217,0.29924,3347.9,3347.8,0.29925]
[1735579654017,0.29925,3347.8,3347.7,0.4296]
[1735579654305,0.29926,3347.7,3347.4,0.29928]
[1735579654508,2.26348759,3347.6,3347.2,44.0078]
[1735579654793,0.29926,3347.8,3347.7,0.29926]
[1735579654991,2.26348759,3347.8,3347.2,44.0078]
[1735579655193,0.29927,3347.6,3347.5,0.29927]
[1735579655993,2.26348759,3347.8,3347.2,44.0078]
[1735579656192,0.29926,3347.7,3347.6,0.29926]
[1735579656591,0.29926,3347.8,3347.7,0.29925]
[1735579657193,0.29926,3347.8,3347.3,0.74825]
[1735579657194,0.29927,3347.7,3347.6,0.29926]
[1735579657993,0.29928,3347.6,3347.5,0.29927]
[1735579659197,0.29926,3347.7,3347.6,0.29925]
[1735579659998,0.29926,3347.8,3347.7,0.29925]
[1735579660199,0.29926,3347.8,3347.3,0.74825]
[1735579660200,3.2078,3348.0,3347.2,44.0078]
[1735579660399,0.29928,3347.6,3347.5,0.29927]
[1735579660800,0.2993,3347.4,3347.3,0.29929]
[1735579660996,3.01163759,3347.8,3347.5,0.29927]
[1735579660997,0.29928,3347.6,3347.5,0.29927]
[1735579662695,0.29927,3347.7,3347.6,0.29926]
[1735579663095,3.2078,3348.0,3347.2,3.2078]
[1735579663295,3.2078,3348.0,3347.9,0.29924]
[1735579664003,3.2078,3348.0,3347.9,41.09924]
[1735579664302,2.5175,3348.0,3347.9,41.09924]
[1735579664496,2.5175,3348.0,3347.9,0.29924]
[1735579664702,2.5175,3348.0,3347.8,0.4553]
[1735579664703,2.5175,3348.0,3347.2,3.2078]
[1735579664912,2.5175,3348.0,3347.5,0.29926]
[1735579664913,0.29928,3347.6,3347.5,0.29926]
[1735579665099,2.56274759,3347.7,3347.6,0.29927]
[1735579665399,2.26348759,3348.0,3347.9,0.29924]
[1735579665595,0.29922,3348.2,3348.1,0.29922]
[1735579666199,2.70098759,3348.3,3348.2,0.29922]
[1735579666707,3.2078,3348.8,3348.2,0.29922]
[1735579666708,3.2078,3349.5,3348.2,3.2078]
[1735579666910,8.20898257,3350.0,3349.2,0.29912]
[1735579666911,7.46858753,3349.7,3349.2,0.29912]
[1735579667108,7.46858753,3349.7,3349.5,3.2078]
[1735579667311,7.46858753,3349.7,3349.6,0.29909]
[1735579667512,7.03118753,3349.7,3349.6,0.29909]
[1735579667702,7.03118753,3349.7,3349.6,41.09909]
[1735579667910,5.47118753,3349.7,3349.6,43.78437759]
[1735579668104,4.09098753,3349.7,3349.6,45.08537759]
[1735579668615,0.8633,3351.1,3349.6,44.78628759]
[1735579668816,0.8633,3351.1,3350.8,3.50678]
[1735579669014,0.8633,3351.1,3350.8,3.2078]
[1735579669218,0.8633,3351.1,3350.8,3.50678]
[1735579669612,0.8633,3351.1,3350.9,0.29897]
[1735579669818,0.8633,3351.1,3350.8,3.2078]
[1735579670020,0.8633,3351.1,3350.8,3.50678]
[1735579670209,0.8633,3351.1,3351.0,0.29897]
[1735579670414,3.2078,3351.4,3350.8,3.2078]
[1735579670415,0.2419071,3351.4,3350.8,3.2078]
[1735579670614,0.4413,3351.7,3351.2,0.29894]
[1735579671122,0.4413,3351.7,3351.2,3.50674]
[1735579672122,2.26348759,3351.4,3351.2,3.50674]
[1735579673023,2.26348759,3351.4,3351.3,0.29894]
[1735579673421,2.26348759,3351.4,3351.2,3.2078]
[1735579673919,2.26348759,3351.4,3351.3,0.29894]
[1735579674224,2.70478759,3351.7,3351.5,0.29892]
[1735579674521,7.70478759,3351.7,3351.2,3.2078]
[1735579674722,7.70478759,3351.7,3351.6,0.29891]
[1735579674922,2.70478759,3351.7,3351.6,0.29891]
[1735579675224,0.4413,3351.7,3351.6,0.29891]
[1735579675922,3.2078,3351.9,3351.8,0.29889]
[1735579677227,2.26348759,3352.0,3351.6,3.2078]
[1735579677419,2.26348759,3352.0,3351.9,0.29889]
[1735579677923,2.71948759,3352.3,3351.6,3.2078]
[1735579678118,2.71948759,3352.3,3352.2,0.29886]
[1735579679113,2.26348759,3352.3,3352.2,0.29886]
[1735579681223,3.2078,3352.4,3352.3,0.29885]
[1735579682224,2.26348759,3352.6,3352.5,0.29883]
[1735579683924,0.74682,3353.8,3352.2,3.2078]
[1735579683925,2.26348759,3353.5,3352.2,3.2078]
[1735579684221,2.26348759,3353.5,3353.4,0.29875]
[1735579685114,4.22863045,3353.7,3353.1,3.2078]
[1735579685314,2.26348759,3353.5,3353.2,0.4595]
[1735579685518,2.26348759,3353.5,3353.4,0.29875]
[1735579686021,1.02083045,3353.7,3353.2,0.4595]
[1735579686220,1.02083045,3353.7,3353.6,0.29873]
[1735579686825,1.02083045,3353.7,3353.2,0.4595]
[1735579686826,1.31956045,3353.7,3353.3,0.29876]
[1735579687025,1.31956045,3353.7,3353.2,0.4595]
[1735579687026,0.29875,3353.5,3353.2,0.4595]
[1735579687326,2.26348759,3353.5,3353.2,0.4595]
[1735579688125,2.26348759,3353.5,3353.3,0.29875]
[1735579688329,2.26348759,3353.5,3353.2,0.75826]
[1735579688724,2.26348759,3353.5,3353.1,3.2078]
[1735579688923,0.29877,3353.2,3353.1,3.2078]
[1735579689123,2.26348759,3353.2,3353.1,3.2078]
[1735579689526,0.29876,3353.4,3353.1,3.50658]
[1735579689726,2.26348759,3353.5,3353.2,0.29877]
[1735579689924,2.26348759,3353.5,3353.3,0.29876]
[1735579690120,2.26348759,3353.5,3353.1,3.2078]
[1735579690426,2.26348759,3353.5,3353.3,0.29875]
[1735579690623,0.29874,3353.6,3353.3,0.29875]
[1735579690831,0.29875,3353.5,3353.2,0.29876]
[1735579691026,4.22863045,3353.7,3353.1,3.2078]
[1735579691631,0.29876,3353.3,3353.1,3.2078]
[1735579691932,0.29876,3353.4,3353.1,3.50657]
[1735579692429,0.29876,3353.3,3353.1,3.50657]
[1735579692824,0.29876,3353.3,3353.1,3.2078]
[1735579693230,2.26348759,3353.5,3353.1,3.2078]
[1735579693528,0.29877,3353.2,3353.1,3.2078]
[1735579694623,2.26348759,3353.5,3353.1,3.2078]
[1735579694824,0.29877,3353.2,3353.1,3.2078]
[1735579696124,0.29877,3353.2,3352.6,3.2078]
[1735579696125,2.26348759,3353.2,3352.6,3.2078]
[1735579696635,0.29879,3353.0,3352.8,0.2988]
[1735579696828,2.26348759,3353.2,3352.8,0.2988]
[1735579697029,2.26348759,3353.2,3353.0,0.29878]
[1735579697030,2.56225759,3353.2,3353.0,0.29878]
[1735579697225,1.02083045,3353.7,3353.2,0.74693]
[1735579697535,1.02083045,3353.7,3353.6,3.50653]
[1735579698532,1.31955045,3353.7,3353.6,3.2078]
[1735579701138,1.31955045,3353.7,3353.6,3.22138949]
[1735579701939,4.52735045,3353.7,3353.6,0.02563729]
[1735579702137,9.52735045,3353.7,3353.6,0.02563729]
[1735579702337,4.52735045,3353.7,3353.6,0.02563729]
[1735579702536,4.52735045,3353.7,3353.6,0.03767565]
[1735579703036,4.52735045,3353.7,3353.0,3.2078]
[1735579703037,4.22863045,3353.7,3353.0,3.2078]
[1735579703241,4.22863045,3353.7,3352.7,0.9107]
[1735579703242,2.26348759,3353.3,3352.7,0.9107]
[1735579703538,0.29878,3353.1,3352.9,0.29879]
[1735579703740,0.29879,3353.0,3352.9,0.29879]
[1735579704132,4.22863045,3353.7,3352.9,0.747]
[1735579704337,4.22863045,3353.7,3353.0,3.2078]
[1735579704637,4.22863045,3353.7,3353.3,0.29875]
[1735579704838,0.29875,3353.5,3353.3,0.29875]
[1735579705140,1.02083045,3353.7,3353.0,3.2078]
[1735579705341,0.29875,3353.5,3353.3,0.29875]
[1735579706136,1.02083045,3353.7,3353.2,0.29877]
[1735579706137,0.29876,3353.4,3353.2,0.29877]
[1735579706334,0.29875,3353.5,3353.3,0.29876]
[1735579706542,2.26348759,3353.6,3353.2,0.29877]
[1735579706839,0.29876,3353.4,3353.2,0.29877]
[1735579707038,0.29876,3353.3,3353.2,0.29877]
[1735579707339,0.29878,3353.1,3353.0,3.2078]
[1735579707536,0.29878,3353.1,3353.0,3.50659]
[1735579707840,0.29877,3353.2,3353.0,3.50659]
[1735579708230,0.29878,3353.2,3353.0,3.50659]
[1735579708543,2.70008759,3353.6,3353.1,0.29877]
[1735579708744,2.70008759,3353.6,3353.0,3.2078]
[1735579708938,0.29878,3353.1,3353.0,3.2078]
[1735579709640,3.44693759,3353.6,3353.1,0.29878]
[1735579709641,0.29878,3353.2,3353.1,0.29878]
[1735579710037,3.44693759,3353.6,3353.0,3.2078]
[1735579710234,2.70008759,3353.6,3353.0,3.2078]
[1735579710537,2.70008759,3353.6,3352.7,0.9107]
[1735579710538,0.4366,3353.6,3352.7,0.9107]
[1735579710740,2.56228759,3352.8,3352.7,0.9107]
[1735579710943,2.56228759,3352.8,3352.7,0.4533]
[1735579711339,2.56228759,3352.8,3352.6,3.2078]
[1735579711340,2.26348759,3352.8,3352.6,3.2078]
[1735579711538,0.29881,3352.7,3352.6,3.2078]
[1735579713248,0.29881,3352.8,3352.6,3.50662]
[1735579713444,0.4347,3353.0,3352.6,3.2078]
[1735579713648,0.2988,3352.9,3352.7,0.29881]
[1735579713949,0.24336278,3353.4,3352.6,3.2078]
[1735579713950,2.26348759,3353.4,3352.6,3.2078]
[1735579714144,2.26348759,3353.4,3352.6,3.95485]
[1735579714449,2.26348759,3353.4,3353.1,3.2078]
[1735579714843,0.29877,3353.2,3353.1,3.2078]
[1735579715149,2.26348759,3353.4,3352.7,0.426]
[1735579715356,2.26348759,3353.0,3352.5,6.97684931]
[1735579715542,0.29882,3352.6,3352.5,6.97684931]
[1735579716240,0.29882,3352.6,3352.4,0.29883]
[1735579716535,2.26348759,3353.0,3352.6,0.29882]
[1735579716736,0.29881,3352.8,3352.6,0.29882]
[1735579716939,0.29881,3352.8,3352.6,0.29881]
[1735579717149,0.29881,3352.8,3352.6,3.50661]
[1735579717647,0.29881,3352.7,3352.6,3.50661]
[1735579717840,2.26348759,3353.0,3352.6,3.2078]
[1735579718044,1.76765045,3353.7,3352.6,3.2078]
[1735579718250,2.26348759,3353.5,3353.1,3.2078]
[1735579718450,0.29876,3353.3,3353.2,0.4334]
[1735579719442,0.29876,3353.3,3352.8,0.4342]
[1735579719443,0.29878,3353.1,3352.9,0.29879]
[1735579719645,0.2988,3352.8,3352.7,3.2078]
[1735579719843,2.26348759,3353.2,3352.5,6.97684931]
[1735579719844,2.26348759,3352.9,3352.5,6.97684931]
[1735579720039,2.26348759,3352.9,3352.5,7.27567931]
[1735579720040,0.29882,3352.7,3352.5,7.27567931]
[1735579720243,0.29882,3352.7,3352.6,0.29882]
[1735579720843,0.29883,3352.5,3352.4,1.16643]
[1735579721043,2.26348759,3352.9,3352.4,0.8676]
[1735579721240,0.29881,3352.8,3352.7,0.29881]
[1735579721849,0.29879,3353.0,3352.9,0.29879]
[1735579722045,0.29879,3353.1,3353.0,0.29878]
[1735579722247,0.29879,3353.0,3352.8,0.2988]
[1735579722446,1.16909,3353.4,3352.8,0.2988]
[1735579722649,1.16909,3353.4,3352.9,0.29879]
[1735579723047,2.26348759,3353.2,3352.6,3.2078]
[1735579723346,0.74695,3353.1,3352.6,3.2078]
[1735579723542,2.26348759,3353.2,3352.6,3.2078]
[1735579723848,0.29876,3353.3,3353.2,0.29877]
[1735579724148,0.4222,3353.4,3352.6,3.95485]
[1735579724341,0.4222,3353.4,3352.6,3.2078]
[1735579724545,2.26348759,3353.2,3352.6,3.2078]
[1735579724741,0.29878,3353.1,3352.6,3.2078]
[1735579724945,0.29878,3353.1,3353.0,0.29879]
[1735579725951,0.29875,3353.4,3353.3,0.29876]
[1735579726151,0.29877,3353.2,3352.6,3.95486]
[1735579726448,2.26348759,3353.5,3353.0,3.2078]
[1735579726653,6.79529507,3353.7,3352.4,0.8676]
[1735579726654,7.09402507,3353.7,3353.6,0.29873]
[1735579726855,6.79529507,3353.7,3353.6,0.29873]
[1735579727955,1.02083045,3353.7,3353.6,0.29873]
[1735579729150,1.31955045,3353.7,3353.6,0.29873]
[1735579729356,0.29873,3353.6,3353.5,0.73454]
[1735579729745,0.29873,3353.6,3353.5,0.4358]
[1735579729958,0.29874,3353.5,3353.4,3.2078]
[1735579732451,0.4527,3353.6,3353.3,0.29876]
[1735579732452,0.29875,3353.4,3353.3,0.29876]
[1735579732856,0.4527,3353.6,3353.1,0.4145]
[1735579733259,6.79529507,3353.7,3353.1,0.4145]
[1735579733448,6.79529507,3353.7,3353.6,0.29873]
[1735579734556,1.02083045,3353.7,3353.6,0.29873]
[1735579735958,1.02083045,3353.7,3353.6,41.09873]
[1735579736260,1.31955045,3353.7,3353.6,41.09873]
[1735579736660,1.02083045,3353.7,3353.6,41.09873]
[1735579742053,1.02083045,3353.7,3353.6,46.09873]
[1735579742255,0.29864,3354.7,3354.6,0.29864]
[1735579742457,0.72624,3354.7,3354.6,0.29864]
[1735579742759,5.86650118,3354.8,3354.7,0.29864]
[1735579743066,0.29863,3354.8,3354.7,0.29864]
[1735579743364,5.86650118,3355.2,3355.1,0.2986]
[1735579743564,6.16509118,3355.2,3355.1,0.2986]
[1735579743857,6.10041955,3355.2,3354.5,3.2078]
[1735579744165,6.10041955,3355.2,3354.6,0.29864]
[1735579744166,0.29864,3354.7,3354.6,0.29864]
[1735579744359,0.29866,3354.5,3354.4,0.29866]
[1735579744664,0.29867,3354.4,3354.3,0.29866]
[1735579744852,0.74658,3354.8,3354.5,0.29865]
[1735579744853,0.29865,3354.6,3354.5,0.29865]
[1735579745056,0.29866,3354.5,3354.4,0.29866]
[1735579745261,0.4276,3354.8,3354.7,0.29864]
[1735579745464,0.72623,3354.8,3354.7,0.29864]
[1735579746656,0.29866,3354.5,3354.4,0.29865]
[1735579746964,0.29866,3354.5,3354.4,0.29866]
[1735579747470,2.67888759,3354.7,3354.2,0.4433]
[1735579747659,0.29868,3354.2,3354.1,3.50648]
[1735579747859,0.29868,3354.3,3354.2,0.29867]
[1735579749266,0.29868,3354.2,3354.1,3.50648]
[1735579749574,0.29868,3354.3,3354.2,0.29868]
[1735579752360,6.63329759,3354.7,3354.1,3.2078]
[1735579752867,0.29867,3354.4,3354.3,0.29867]
[1735579753064,6.63329759,3354.7,3354.1,3.2078]
[1735579753262,0.29868,3354.3,3354.2,0.29867]
[1735579753865,0.29868,3354.2,3354.1,3.2078]
[1735579754667,0.74663,3354.6,3354.1,3.2078]
[1735579754668,0.29868,3354.3,3354.1,3.2078]
[1735579754864,0.29868,3354.2,3354.1,3.50649]
[1735579755064,0.75698,3354.2,3354.1,3.50649]
[1735579755461,0.4583,3354.2,3354.1,3.50649]
[1735579756764,0.29865,3354.6,3354.5,0.29865]
[1735579756969,0.75695,3354.6,3354.5,0.29865]
[1735579757868,0.29867,3354.4,3354.3,0.29867]
[1735579758170,0.29866,3354.5,3354.4,0.29866]
[1735579758977,0.29867,3354.4,3354.3,0.29867]
[1735579760972,0.29866,3354.5,3354.4,0.29866]
[1735579761864,0.29867,3354.4,3354.3,0.29867]
[1735579762168,0.29868,3354.3,3354.2,0.29868]
[1735579762368,0.29868,3354.2,3354.1,3.50648]
[1735579762768,0.29868,3354.3,3354.2,0.29867]
[1735579763160,0.4583,3354.6,3354.1,3.2078]
[1735579763365,0.29868,3354.2,3354.1,3.2078]
[1735579763670,0.4583,3354.6,3354.2,0.29867]
[1735579763671,0.29867,3354.3,3354.2,0.29867]
[1735579764266,0.29866,3354.5,3354.4,0.29866]
[1735579765171,0.29866,3354.5,3354.1,3.2078]
[1735579765172,0.4583,3354.6,3354.1,3.2078]
[1735579765366,0.29867,3354.4,3354.3,0.29866]
[1735579765566,0.75695,3354.6,3354.5,0.29865]
[1735579765962,0.29866,3354.5,3354.4,0.29866]
[1735579766465,0.4583,3354.6,3354.1,3.2078]
[1735579766670,0.29867,3354.4,3354.3,0.29867]
[1735579766864,0.4583,3354.6,3354.1,3.2078]
[1735579767066,0.75695,3354.6,3354.5,0.29865]
[1735579767365,0.75695,3354.6,3354.4,0.29865]
[1735579767366,0.29866,3354.5,3354.4,0.29865]
[1735579768566,0.75695,3354.6,3354.5,0.29865]
[1735579768768,0.29865,3354.6,3354.5,0.29865]
[1735579771370,0.29862,3355.0,3354.9,0.29861]
[1735579771571,9.07430118,3355.1,3354.6,1.20412]
[1735579771869,9.37291118,3355.1,3355.0,0.29861]
[1735579772275,3.50641,3355.1,3355.0,0.29861]
[1735579772775,0.29861,3355.0,3354.9,0.29861]
[1735579772970,0.29864,3354.7,3354.6,0.4575]
[1735579773176,0.29866,3354.5,3354.4,0.29866]
[1735579773577,0.29867,3354.4,3354.3,0.29867]
[1735579773777,0.4552,3354.6,3354.2,5.10630717]
[1735579773977,0.29866,3354.5,3354.4,0.29866]
[1735579774369,0.29867,3354.4,3354.3,0.29866]
[1735579774573,0.29867,3354.3,3354.2,0.74767]
[1735579775772,1.20183,3354.6,3354.1,3.2078]
[1735579775979,0.29868,3354.2,3354.1,3.2078]
[1735579778282,0.98065269,3354.5,3353.9,0.4484]
[1735579778283,6.10049387,3354.5,3353.9,0.4484]
[1735579778481,0.2987,3354.0,3353.9,0.4484]
[1735579779392,0.29872,3353.8,3353.7,0.29872]
[1735579779596,3.01023759,3354.1,3353.6,3.2078]
[1735579779799,0.73862,3353.7,3353.6,3.2078]
[1735579780292,0.73862,3353.7,3353.4,0.4222]
[1735579780293,0.29874,3353.5,3353.4,0.4222]
[1735579781188,0.29874,3353.6,3353.4,0.72095]
[1735579781389,0.29874,3353.5,3353.4,0.72095]
[1735579781586,0.29874,3353.5,3353.4,0.4222]
[1735579781788,6.16523118,3353.7,3353.5,0.29874]
[1735579782090,0.29873,3353.6,3353.5,0.29874]
[1735579782293,0.29873,3353.7,3353.5,0.29874]
[1735579782592,0.29873,3353.7,3353.4,0.4222]
[1735579782788,0.29872,3353.8,3353.7,0.29872]
[1735579782993,6.16522118,3353.8,3353.4,0.4222]
[1735579783194,6.16522118,3353.8,3353.6,0.29873]
[1735579783398,6.16522118,3353.8,3353.6,3.50653]
[1735579783994,5.86650118,3353.8,3353.6,3.2078]
[1735579784192,6.16522118,3353.8,3353.7,0.29872]
[1735579784394,0.29872,3353.7,3353.6,3.2078]
[1735579784593,6.16522118,3353.8,3353.6,3.50653]
[1735579784792,0.29872,3353.7,3353.6,3.2078]
[1735579785397,3.01028759,3353.8,3353.2,3.2078]
[1735579785592,0.29879,3353.0,3352.9,5.11470717]
[1735579785989,0.4298,3353.2,3352.9,5.11470717]
[1735579786191,0.72858,3353.2,3352.9,5.41349717]
[1735579786396,0.29875,3353.5,3353.2,0.29876]
[1735579786603,0.29876,3353.4,3353.2,3.2078]
[1735579786900,6.16526118,3353.4,3353.2,3.50657]
[1735579787799,0.29876,3353.4,3353.2,3.2078]
[1735579788000,0.00190649,3353.5,3353.2,3.2078]
[1735579788201,0.29876,3353.4,3353.2,3.2078]
[1735579788500,0.00190649,3353.5,3353.2,3.2078]
[1735579788901,0.30065649,3353.5,3353.3,0.29876]
[1735579789100,0.00190649,3353.5,3353.2,3.2078]
[1735579789296,0.00190649,3353.5,3353.4,0.29875]
[1735579789492,0.30064649,3353.5,3353.4,0.29875]
[1735579789699,0.30064649,3353.5,3353.3,0.29876]
[1735579789700,0.29875,3353.4,3353.3,0.29876]
[1735579789899,0.30065649,3353.5,3353.3,0.29876]
[1735579790099,0.00190649,3353.5,3353.3,0.29876]
[1735579790299,0.29875,3353.4,3353.3,0.29876]
[1735579792600,0.00190649,3353.5,3353.2,3.2078]
[1735579792801,0.30065649,3353.5,3353.4,0.29875]
[1735579793204,0.29876,3353.4,3353.3,0.29875]
[1735579793602,0.29876,3353.3,3353.2,3.50656]
[1735579795308,0.29876,3353.4,3353.3,0.29875]
[1735579797812,0.30065649,3353.5,3353.4,0.29875]
[1735579798903,0.00190649,3353.5,3353.4,0.29875]
[1735579801512,0.30064649,3353.5,3353.4,0.29875]
[1735579801706,0.00190649,3353.5,3353.4,0.29875]
[1735579802907,0.30064649,3353.5,3353.4,0.29875]
[1735579803405,0.00190649,3353.5,3353.4,0.29875]
[1735579804206,0.30064649,3353.5,3353.4,0.29875]
[1735579805308,2.26539408,3353.5,3353.2,3.2078]
[1735579805513,0.29875,3353.3,3353.2,3.2078]
[1735579806307,0.8901,3353.4,3352.8,3.2078]
[1735579806508,0.29878,3352.9,3352.8,3.2078]
[1735579807215,0.29878,3352.9,3352.8,3.50658]
[1735579807714,0.4335,3353.2,3352.8,3.2078]
[1735579807911,6.30140118,3353.4,3353.3,0.29874]
[1735579808214,5.86650118,3353.4,3353.3,0.29874]
[1735579808607,5.86650118,3353.4,3353.3,41.09874]
[1735579809008,0.30062649,3353.5,3353.3,40.8]
[1735579809210,2.26348759,3353.4,3352.5,4.65730717]
[1735579809418,2.26348759,3353.1,3352.8,0.29878]
[1735579809715,0.4535,3353.0,3352.9,0.29878]
[1735579810312,0.4535,3353.0,3352.5,1.18163]
[1735579810615,0.4535,3353.0,3352.5,0.4346]
[1735579810919,0.29878,3352.9,3352.8,0.29878]
[1735579811106,0.4535,3353.0,3352.9,0.29878]
[1735579811413,1.275,3354.5,3353.4,0.29873]
[1735579811414,0.29867,3354.1,3353.4,0.29873]
[1735579811716,0.29868,3354.1,3353.4,5.77001759]
[1735579811911,0.29868,3354.1,3353.4,46.57001759]
[1735579812112,0.00190649,3353.5,3353.4,44.74113]
[1735579813020,0.00190649,3353.5,3353.4,47.00461759]
[1735579813710,0.4535,3354.3,3354.2,0.29866]
[1735579813920,0.29863,3354.6,3354.5,0.29863]
[1735579815012,0.29864,3354.5,3354.4,0.29864]
[1735579815514,2.56212759,3354.5,3354.4,0.29864]
[1735579815713,2.26348759,3354.5,3354.4,0.29864]
[1735579816520,2.56211759,3354.5,3354.4,0.29864]
[1735579816913,2.26348759,3354.5,3354.4,0.29864]
[1735579817113,2.56211759,3354.5,3354.4,0.29864]
[1735579817315,2.26348759,3354.5,3354.4,0.29864]
[1735579817516,2.56211759,3354.5,3354.4,0.29864]
[1735579817716,0.29865,3354.4,3354.2,3.2078]
[1735579817916,2.26348759,3354.5,3353.9,0.4487]
[1735579818319,5.8565753,3355.1,3354.4,2.26348759]
[1735579818517,7.02789036,3355.5,3355.4,0.29855]
[1735579818730,6.34685036,3355.5,3355.4,7.04483759]
[1735579819020,3.01808036,3355.5,3355.4,10.76983759]
[1735579819214,3.01808036,3355.5,3355.4,5.76983759]
[1735579819522,2.36174036,3355.5,3355.4,8.50635]
[1735579819709,2.36174036,3355.5,3355.4,52.84483759]
[1735579819916,0.82180036,3355.5,3355.4,52.84483759]
[1735579820114,0.4194,3356.5,3355.4,52.84483759]
[1735579820115,0.4194,3356.5,3356.4,0.29846]
[1735579820323,0.74588,3357.7,3356.3,3.2078]
[1735579820324,2.26348759,3357.3,3356.3,3.2078]
[1735579820620,0.72381,3357.1,3356.7,3.50623]
[1735579820819,2.26348759,3357.0,3356.7,3.2078]
[1735579821020,0.29842,3356.9,3356.7,3.2078]
[1735579821220,2.26348759,3357.0,3356.7,3.2078]
[1735579821221,0.29841,3357.0,3356.7,3.2078]
[1735579821422,0.29842,3356.9,3356.7,3.2078]
[1735579821623,0.29843,3356.8,3356.7,3.2078]
[1735579821824,0.29845,3356.6,3356.3,4.78127]
[1735579822019,2.26348759,3357.0,3356.3,4.4828]
[1735579822219,0.29841,3357.0,3356.7,3.50623]
[1735579822825,0.4254,3357.1,3356.7,3.2078]
[1735579823122,2.56189759,3357.0,3356.7,3.2078]